bitfinex-derivatives/quotes_SOLF0:USTF0_20250127
["timestamp","ask_amount","ask_price","bid_price","bid_amount"]
[1737985359991,0.02774265,232.89,232.83,30.84085147]
[1737985360792,0.02774265,232.89,232.87,27.44085147]
[1737985360989,4.265e-05,232.89,232.87,27.44085147]
[1737985361188,4.265e-05,232.89,232.87,31.73555147]
[1737985361891,1.3711,233.05,232.98,4.2927]
[1737985362095,1.3755,233.12,232.93,27.44085147]
[1737985362295,1.3711,233.11,232.97,27.44085147]
[1737985362993,1.3711,233.11,233.02,0.02788612]
[1737985363198,0.02857612,233.06,233.02,0.02788612]
[1737985364996,0.02857612,233.06,233.04,4.2917]
[1737985365193,4.2893,233.17,233.04,4.2917]
[1737985365500,1.3854,233.16,233.04,4.2917]
[1737985366094,1.3854,233.16,233.05,4.2915]
[1737985366299,1.3854,233.16,233.01,27.44085147]
[1737985366497,0.02899177,233.13,233.08,0.03252246]
[1737985366799,1.3854,233.16,233.05,27.44085147]
[1737985367098,0.02713078,233.13,233.1,4.2905]
[1737985367294,0.02713078,233.13,233.08,0.02765745]
[1737985367501,1.3212,233.2,233.08,0.02765745]
[1737985367700,1.32,233.27,233.09,27.44085147]
[1737985367895,1.3083,233.26,233.13,4.2899]
[1737985368104,26.59514832,233.25,233.07,3.4]
[1737985368397,26.59514832,233.25,233.1,4.2906]
[1737985368603,0.03258608,233.18,233.14,0.03117077]
[1737985369203,0.03258608,233.18,233.0,26.59514832]
[1737985369404,26.59514832,233.12,232.98,4.2926]
[1737985369605,1.3083,233.11,232.88,26.59514832]
[1737985370106,26.59514832,233.16,232.96,26.59514832]
[1737985370307,0.02748211,233.02,232.97,0.02994376]
[1737985370508,2.7932,233.15,232.92,26.59514832]
[1737985370799,0.0292048,233.02,232.97,0.02829185]
[1737985371304,0.02759198,233.02,232.97,0.03108852]
[1737985371704,0.02759198,233.02,232.99,4.2925]
[1737985372306,0.02759198,233.02,233.0,4.2924]
[1737985372702,9.198e-05,233.02,233.0,30.53437027]
[1737985373007,2.7932,233.15,233.1,4.2905]
[1737985373208,1.4292,233.15,233.04,26.24197027]
[1737985373905,26.24197027,233.26,233.04,26.24197027]
[1737985374106,1.4076,233.25,233.08,26.24197027]
[1737985374304,0.02834789,233.17,233.13,0.0301293]
[1737985374601,0.02834789,233.17,233.16,4.2895]
[1737985374807,0.02834789,233.17,233.13,0.0301293]
[1737985375007,0.02834789,233.17,233.03,3.4]
[1737985375205,26.24197027,233.22,233.07,4.2911]
[1737985375407,26.24197027,233.22,233.03,3.4]
[1737985376208,0.03006222,233.15,233.1,0.02745862]
[1737985376708,0.03006222,233.15,233.14,4.2899]
[1737985377710,6.222e-05,233.15,233.14,4.2899]
[1737985378711,6.222e-05,233.15,233.12,4.2901]
[1737985378907,6.222e-05,233.15,233.1,0.02745862]
[1737985379211,6.222e-05,233.15,233.11,4.2903]
[1737985379511,6.222e-05,233.15,233.1,0.02745862]
[1737985379811,6.222e-05,233.15,233.11,4.2903]
[1737985380204,6.222e-05,233.15,233.1,0.02745862]
[1737985380412,26.24197027,233.3,233.1,0.02745862]
[1737985380413,26.24197027,233.42,233.12,52.48394054]
[1737985380710,26.24197027,233.42,233.17,26.24197027]
[1737985380711,26.24197027,233.38,233.17,26.24197027]
[1737985380904,26.24197027,233.38,233.17,29.64197027]
[1737985381310,4.1469,233.41,233.21,26.24197027]
[1737985381512,0.0292721,233.3,233.25,0.0272417]
[1737985382006,0.0292721,233.3,233.21,26.24197027]
[1737985382007,4.1469,233.41,233.21,26.24197027]
[1737985382213,0.02705161,233.3,233.25,4.31531633]
[1737985382405,0.02705161,233.3,233.25,0.02761633]
[1737985382610,4.1469,233.41,233.21,26.24197027]
[1737985382915,0.02916854,233.3,233.25,0.02804577]
[1737985383108,4.1469,233.41,233.17,26.24197027]
[1737985383310,26.24197027,233.3,233.14,3.4]
[1737985383613,4.0977,233.29,233.14,3.4]
[1737985383809,0.03118098,233.24,233.2,0.03000771]
[1737985385109,0.03118098,233.24,233.22,4.2883]
[1737985385308,0.03118098,233.24,233.21,26.24197027]
[1737985385509,0.03118098,233.24,233.22,4.2884]
[1737985386216,0.03118098,233.24,233.2,0.03000771]
[1737985386814,0.03118098,233.24,233.09,26.24197027]
[1737985387014,2.75408098,233.24,233.08,3.4]
[1737985387415,2.75408098,233.24,233.08,7.6909]
[1737985387615,2.75408098,233.24,233.09,26.24197027]
[1737985387812,2.75408098,233.24,233.15,4.3221475]
[1737985388017,2.75408098,233.24,233.15,0.0326475]
[1737985388413,2.75408098,233.24,233.17,4.2893]
[1737985388615,1.41898098,233.24,233.17,26.24197027]
[1737985388917,0.03118098,233.24,233.17,26.24197027]
[1737985389117,0.03118098,233.24,233.21,4.2886]
[1737985389314,0.03118098,233.24,233.17,26.24197027]
[1737985389516,0.03118098,233.24,233.2,4.31993721]
[1737985389813,0.03118098,233.24,233.2,0.03123721]
[1737985391918,4.31918098,233.24,233.11,77.8102]
[1737985392114,1.365,233.23,233.11,73.52]
[1737985392620,1.365,233.23,233.12,4.2902]
[1737985393216,0.03118763,233.2,233.15,0.02440101]
[1737985393416,1.365,233.23,233.05,26.24197027]
[1737985393821,4.2889,233.19,233.1,4.2906]
[1737985394418,1.365,233.23,233.05,26.24197027]
[1737985394621,0.03118063,233.17,233.05,26.24197027]
[1737985395016,4.29,233.13,233.04,73.52]
[1737985395218,1.431,233.16,233.04,73.52]
[1737985395423,0.03151635,233.11,233.04,73.52]
[1737985395722,0.03151635,233.11,233.09,4.2907]
[1737985396725,1.635e-05,233.11,233.09,4.2907]
[1737985397120,1.635e-05,233.11,233.1,4.2906]
[1737985398921,1.635e-05,233.11,233.09,26.24197027]
[1737985399427,1.635e-05,233.11,233.08,0.02872716]
[1737985401428,1.635e-05,233.11,233.04,73.52]
[1737985402323,4.29041635,233.11,233.04,73.52]
[1737985402523,1.415,233.1,233.04,73.52]
[1737985403032,1.415,233.1,233.09,4.2908]
[1737985403231,1.635e-05,233.11,233.05,26.24197027]
[1737985403527,1.635e-05,233.11,233.1,4.2906]
[1737985406033,1.635e-05,233.11,233.04,73.52]
[1737985406034,16.13152965,233.35,233.09,19.53152965]
[1737985406232,16.13152965,233.35,233.14,16.13152965]
[1737985406432,4.2878,233.26,233.09,19.53152965]
[1737985406633,2.6762,233.34,233.09,19.53152965]
[1737985406634,16.13152965,233.27,233.09,19.53152965]
[1737985406834,16.13152965,233.27,233.09,3.4]
[1737985407335,0.03023778,233.2,233.09,3.4]
[1737985407933,0.03023778,233.2,233.09,19.53152965]
[1737985409137,0.03023778,233.2,233.1,4.2906]
[1737985409532,0.03023778,233.2,233.09,19.53152965]
[1737985410331,0.03023778,233.2,233.1,4.2904]
[1737985410835,0.03023778,233.2,233.11,4.2904]
[1737985411536,4.31913778,233.2,233.1,4.2906]
[1737985411835,4.31913778,233.2,233.09,19.53152965]
[1737985412037,4.31913778,233.2,233.09,3.4]
[1737985412337,0.03023778,233.2,233.04,73.52]
[1737985412537,1.3568,233.2,233.04,73.52]
[1737985412734,0.0304183,233.14,233.04,73.52]
[1737985414938,16.13152965,233.13,232.88,16.13152965]
[1737985415141,16.13152965,233.13,232.92,16.13152965]
[1737985415439,0.02920291,233.03,232.96,16.13152965]
[1737985415632,4.2904,233.11,233.02,4.292]
[1737985415839,0.02988781,233.09,232.96,16.13152965]
[1737985416137,0.02988781,233.09,233.0,16.13152965]
[1737985416339,4.2901,233.13,233.02,4.2919]
[1737985416538,0.03092123,233.07,233.0,16.13152965]
[1737985416939,0.03092123,233.07,233.03,4.2917]
[1737985418541,0.03092123,233.07,233.04,4.2917]
[1737985418939,0.03092123,233.07,233.0,16.13152965]
[1737985419338,2.123e-05,233.07,233.06,4.2913]
[1737985419543,16.13152965,233.34,233.04,16.13152965]
[1737985419735,1.4087,233.3,233.19,4.2888]
[1737985419936,1.4087,233.3,233.16,16.13152965]
[1737985420135,1.4087,233.3,233.17,3.4]
[1737985420638,0.02704623,233.26,233.21,0.02918255]
[1737985422143,0.02704623,233.26,233.21,4.31768255]
[1737985422637,0.02704623,233.26,233.21,0.02918255]
[1737985425545,0.02704623,233.26,233.21,4.31758255]
[1737985425945,0.02704623,233.26,233.21,0.02918255]
[1737985427441,1.3849,233.37,233.24,16.13152965]
[1737985427642,1.3849,233.37,233.3,4.2869]
[1737985427947,1.3849,233.37,233.24,16.13152965]
[1737985428748,0.03213789,233.33,233.28,0.02732444]
[1737985429349,0.03213789,233.33,233.3,4.2869]
[1737985429648,0.03213789,233.33,233.28,0.02732444]
[1737985429649,0.03213789,233.33,233.28,16.15885409]
[1737985430250,0.03213789,233.33,233.32,4.2865]
[1737985431251,0.03213789,233.33,233.28,20.44595409]
[1737985431651,0.03213789,233.33,233.28,16.15885409]
[1737985431851,0.03213789,233.33,233.32,4.2865]
[1737985432151,0.03213789,233.33,233.28,16.15885409]
[1737985432348,0.03213789,233.33,233.3,4.2867]
[1737985433251,0.03213789,233.33,233.32,4.2865]
[1737985433452,0.03213789,233.33,233.32,7.6865]
[1737985435054,0.03213789,233.33,233.28,16.15885409]
[1737985435251,0.03213789,233.33,233.28,3.42732444]
[1737985435454,0.03213789,233.33,233.28,0.02732444]
[1737985435654,0.03213789,233.33,233.28,16.15885409]
[1737985436356,0.03213789,233.33,233.29,3.4]
[1737985436557,0.03213789,233.33,233.32,4.2865]
[1737985436957,0.03213789,233.33,233.29,3.4]
[1737985437258,0.03213789,233.33,233.3,4.2869]
[1737985437462,0.03213789,233.33,233.29,3.4]
[1737985438157,0.03213789,233.33,233.32,4.2865]
[1737985438461,0.03213789,233.33,233.29,3.4]
[1737985438760,0.03213789,233.33,233.3,4.2867]
[1737985439157,0.03213789,233.33,233.29,3.4]
[1737985440161,0.03213789,233.33,233.32,20.41802965]
[1737985440354,2.8203,233.44,233.32,20.41802965]
[1737985440355,2.8203,233.44,233.32,16.13152965]
[1737985440861,2.8203,233.44,233.29,3.4]
[1737985441063,16.13152965,233.42,233.24,16.13152965]
[1737985441263,16.13152965,233.42,233.24,19.53152965]
[1737985441463,0.02773408,233.35,233.31,0.03044775]
[1737985441656,16.13152965,233.38,233.11,73.16773717]
[1737985441861,4.2882,233.23,233.11,77.45803717]
[1737985442162,16.13152965,233.32,233.11,4.89039]
[1737985442363,4.2872,233.29,233.16,4.2895]
[1737985442564,2.792,233.31,233.12,16.13152965]
[1737985442966,0.02752127,233.24,233.19,0.02757736]
[1737985443368,0.02752127,233.24,233.11,4.89039]
[1737985443768,4.2888,233.2,233.11,4.89039]
[1737985443965,1.385,233.19,233.11,4.89039]
[1737985444669,0.85700818,233.37,233.15,16.13152965]
[1737985444871,5.6708,233.36,233.24,4.2878]
[1737985445073,1.385,233.36,233.19,19.53152965]
[1737985445463,1.385,233.36,233.26,4.2875]
[1737985445869,0.02833416,233.33,233.29,0.0274606]
[1737985446166,16.13152965,233.3,233.11,4.89039]
[1737985446370,16.13152965,233.26,233.11,4.89039]
[1737985447171,4.2886,233.21,233.11,9.18079]
[1737985447370,2.7996,233.2,233.16,0.02799659]
[1737985448566,1.4139,233.2,233.16,0.02799659]
[1737985448769,0.03026969,233.21,233.16,0.02799659]
[1737985449773,0.03026969,233.21,233.19,4.2889]
[1737985450170,0.03026969,233.21,233.16,0.02799659]
[1737985452375,0.03026969,233.21,233.16,26.22690373]
[1737985452573,0.03026969,233.21,233.2,4.2887]
[1737985454273,0.03026969,233.21,233.16,0.02799659]
[1737985455977,0.03026969,233.21,233.13,3.4]
[1737985456469,4.2893,233.18,233.11,4.89039]
[1737985456775,28.88140714,233.17,233.11,4.89039]
[1737985456973,2.6825,233.17,232.99,3.4]
[1737985457173,0.03014403,233.16,233.0,26.19890714]
[1737985457476,2.6825,233.17,233.0,26.19890714]
[1737985457675,0.02891922,233.11,233.0,26.19890714]
[1737985458071,0.02891922,233.11,233.07,4.2911]
[1737985458375,0.02891922,233.11,233.01,3.4]
[1737985458775,0.02891922,233.11,233.05,4.2913]
[1737985458978,0.02891922,233.11,233.01,3.4]
[1737985459477,0.02891922,233.11,233.1,4.2906]
[1737985459978,25.95562636,233.25,233.04,26.19890714]
[1737985460171,4.2882,233.24,233.11,4.2902]
[1737985460377,26.19890714,233.15,232.98,3.4]
[1737985460575,26.19890714,233.15,232.96,26.19890714]
[1737985460770,26.19890714,233.15,232.98,3.4]
[1737985461175,0.02722699,233.11,233.06,0.02824171]
[1737985462379,2.699e-05,233.11,233.06,0.02824171]
[1737985462581,2.699e-05,233.11,233.09,26.19890714]
[1737985462780,2.699e-05,233.11,233.1,4.2906]
[1737985463582,0.85719183,233.32,233.09,26.19890714]
[1737985463778,4.2873,233.28,233.09,26.19890714]
[1737985463979,26.19890714,233.29,233.13,4.2899]
[1737985464174,26.19890714,233.29,233.1,3.4]
[1737985464575,0.0281594,233.22,233.17,4.32154623]
[1737985464775,0.0281594,233.22,233.17,0.03234623]
[1737985465179,1.3861594,233.22,233.17,0.03234623]
[1737985465680,1.3861594,233.22,233.09,3.4]
[1737985466075,1.3861594,233.22,233.11,4.2904]
[1737985466581,1.3861594,233.22,233.14,0.02782653]
[1737985467084,5.6745594,233.22,233.14,0.02782653]
[1737985467385,1.3861594,233.22,233.14,0.02782653]
[1737985468083,26.19890714,233.21,233.14,0.02782653]
[1737985468282,26.19890714,233.21,233.09,4.2906]
[1737985468283,4.2892,233.18,233.09,4.2906]
[1737985468479,1.3186,233.17,233.04,3.4]
[1737985468685,1.3186,233.17,233.04,29.59890714]
[1737985469184,1.358,233.22,233.08,26.19890714]
[1737985469383,0.02775476,233.13,233.08,26.19890714]
[1737985469784,0.02775476,233.13,233.04,26.19890714]
[1737985471488,0.02775476,233.13,233.1,4.2905]
[1737985471686,0.02775476,233.13,233.08,26.19890714]
[1737985472384,0.02775476,233.13,233.04,26.19890714]
[1737985472590,0.02775476,233.13,233.03,3.4]
[1737985472789,0.02775476,233.13,233.01,26.22168381]
[1737985473089,1.38335476,233.13,233.03,4.2919]
[1737985473290,2.70995476,233.13,233.03,4.2919]
[1737985473490,2.70995476,233.13,233.02,73.46]
[1737985473691,2.70995476,233.13,233.08,4.2909]
[1737985474190,2.70995476,233.13,233.09,4.2908]
[1737985474394,2.70995476,233.13,233.04,16.13884519]
[1737985474990,2.70995476,233.13,233.09,4.2907]
[1737985475686,2.70995476,233.13,233.1,4.2905]
[1737985475890,0.02775476,233.13,233.04,16.13884519]
[1737985476290,0.02775476,233.13,233.06,4.2912]
[1737985476485,0.02775476,233.13,233.04,16.13884519]
[1737985477392,0.02775476,233.13,233.08,4.2908]
[1737985477591,0.02775476,233.13,233.02,73.46]
[1737985477784,2.6775,233.21,233.12,16.13884519]
[1737985478491,1.3762,233.21,233.15,4.2895]
[1737985478692,2.636,233.31,233.13,3.4]
[1737985478893,0.03117064,233.19,233.16,16.13884519]
[1737985479191,4.2871,233.29,233.16,16.13884519]
[1737985479693,0.02858489,233.25,233.2,0.03050497]
[1737985480793,0.02858489,233.25,233.1,3.4]
[1737985480993,16.13884519,233.29,233.1,3.4]
[1737985481296,16.13884519,233.25,233.1,3.4]
[1737985481895,4.2893,233.18,233.1,3.4]
[1737985482294,1.4267,233.17,233.1,3.4]
[1737985482991,1.4267,233.17,233.11,4.2904]
[1737985483395,1.4267,233.17,233.04,16.13884519]
[1737985483594,1.4267,233.17,233.08,4.2908]
[1737985483794,0.03011841,233.13,233.08,4.2908]
[1737985483994,0.03011841,233.13,233.05,3.4]
[1737985484297,0.03011841,233.13,233.06,4.2912]
[1737985484795,0.03011841,233.13,233.05,3.4]
[1737985485297,4.32021841,233.13,233.05,3.4]
[1737985485596,0.03011841,233.13,233.04,16.13884519]
[1737985485998,0.03011841,233.13,233.02,73.46]
[1737985486292,0.03011841,233.13,232.8,89.65884519]
[1737985486499,1.4343,233.16,232.92,16.13884519]
[1737985486797,0.03181196,232.99,232.92,16.13884519]
[1737985486994,0.02968923,233.06,232.92,16.13884519]
[1737985487192,1.4343,233.16,232.96,16.13884519]
[1737985487396,0.0298498,233.01,232.98,4.2926]
[1737985487696,1.4343,233.16,232.98,4.2926]
[1737985487896,0.0306209,233.02,232.98,4.2926]
[1737985488099,1.4343,233.16,232.98,4.2926]
[1737985488396,0.02793082,233.02,232.98,4.2926]
[1737985488593,4.32270769,233.09,232.98,4.2926]
[1737985488797,1.3286,233.08,232.98,4.2926]
[1737985488999,0.02832299,233.06,232.96,20.43194519]
[1737985489294,0.02832299,233.06,233.01,0.59364]
[1737985489500,1.3286,233.08,233.01,0.59364]
[1737985489699,0.0303648,233.06,233.01,0.59364]
[1737985490098,4.3217648,233.06,233.01,0.59364]
[1737985490302,1.4032,233.05,233.01,0.59364]
[1737985490601,1.4032,233.05,232.88,16.13884519]
[1737985491001,0.03258653,232.99,232.88,16.13884519]
[1737985491204,0.03258653,232.99,232.91,4.294]
[1737985491495,0.03258653,232.99,232.88,16.13884519]
[1737985491802,0.03258653,232.99,232.91,4.294]
[1737985492002,0.03258653,232.99,232.88,16.13884519]
[1737985492898,0.03258653,232.99,232.92,4.2939]
[1737985493104,0.03258653,232.99,232.81,16.13884519]
[1737985493403,16.13884519,233.01,232.81,16.13884519]
[1737985493596,0.03054593,232.92,232.86,4.295]
[1737985494000,0.03054593,232.92,232.81,16.13884519]
[1737985494597,0.03054593,232.92,232.91,4.2941]
[1737985495406,0.03054593,232.92,232.89,4.2944]
[1737985495705,0.03054593,232.92,232.85,16.13884519]
[1737985496006,0.03054593,232.92,232.88,4.2946]
[1737985496307,0.03054593,232.92,232.8,73.52]
[1737985496507,4.2941,232.91,232.8,73.52]
[1737985496702,2.7889,232.9,232.8,73.52]
[1737985497205,0.02989405,232.87,232.8,73.52]
[1737985497606,0.02989405,232.87,232.8,77.8161]
[1737985497805,16.13884519,233.13,232.86,16.13884519]
[1737985498004,16.13884519,233.13,232.92,16.13884519]
[1737985498504,16.13884519,233.13,232.93,3.4]
[1737985498907,0.02919409,233.05,233.01,0.03253525]
[1737985500707,0.02919409,233.05,233.03,4.2918]
[1737985501110,16.14646449,233.29,233.02,16.14646449]
[1737985501308,1.3248,233.26,233.07,16.14646449]
[1737985501603,1.3248,233.26,233.13,26.19606484]
[1737985501808,1.3248,233.26,233.2,4.2887]
[1737985502005,0.85719183,233.32,233.08,2.3779]
[1737985502204,0.85719183,233.32,233.21,26.19606484]
[1737985502205,0.03284328,233.25,233.21,26.19606484]
[1737985502512,0.85719183,233.32,233.21,29.62825119]
[1737985502707,0.85719183,233.32,233.21,0.03218635]
[1737985502904,26.19606484,233.27,233.21,0.03218635]
[1737985503107,1.3044,233.26,233.09,3.4]
[1737985503308,2.7285,233.26,233.09,3.4]
[1737985503810,2.7285,233.26,233.09,7.6907]
[1737985504304,0.03011632,233.2,233.15,0.0293904]
[1737985504511,0.03011632,233.2,233.06,73.58]
[1737985504905,2.7285,233.26,233.06,73.58]
[1737985505109,26.19606484,233.23,233.06,73.58]
[1737985505305,4.2887,233.21,233.06,77.8712]
[1737985505510,26.19606484,233.23,233.06,73.58]
[1737985505713,0.0275496,233.16,233.11,0.02921474]
[1737985506916,0.0275496,233.16,233.11,4.31951474]
[1737985507116,0.0275496,233.16,233.11,0.02921474]
[1737985507316,0.0275496,233.16,233.12,26.19606484]
[1737985507615,0.85744908,233.25,233.19,4.2889]
[1737985507816,2.7285,233.26,233.19,4.2889]
[1737985508516,1.396,233.31,233.16,26.19606484]
[1737985508717,0.02962347,233.25,233.2,0.02785986]
[1737985509113,0.02962347,233.25,233.01,1.3528]
[1737985509114,26.19606484,233.23,233.01,1.3528]
[1737985509313,26.19606484,233.19,233.0,26.19606484]
[1737985509612,1.4234,233.18,233.0,26.19606484]
[1737985509813,2.8451,233.18,233.0,26.19606484]
[1737985510212,0.03091307,233.11,233.07,0.03012289]
[1737985511614,0.03091307,233.11,232.96,26.19606484]
[1737985511815,26.19606484,233.15,232.92,26.19606484]
[1737985512619,4.2907,233.1,232.92,26.19606484]
[1737985512815,0.03121091,233.06,232.92,26.19606484]
[1737985513013,0.03121091,233.06,232.96,26.19606484]
[1737985513213,2.8451,233.18,233.04,4.2917]
[1737985513414,0.02890699,233.13,232.96,26.19606484]
[1737985513621,2.8451,233.18,232.96,26.19606484]
[1737985513920,0.02878973,233.07,232.96,26.19606484]
[1737985515413,0.02878973,233.07,232.92,26.19606484]
[1737985515617,26.19606484,233.15,232.92,26.19606484]
[1737985515818,26.19606484,233.15,232.96,26.19606484]
[1737985516018,0.03110126,233.02,232.96,26.19606484]
[1737985516218,2.8451,233.18,232.96,26.19606484]
[1737985516418,0.03281539,233.01,232.96,26.19606484]
[1737985516618,4.2901,233.13,232.96,26.19606484]
[1737985516817,2.454e-05,233.01,233.0,30.48846484]
[1737985517124,2.8451,233.18,233.0,26.19606484]
[1737985517322,4.2237,233.18,233.12,4.2902]
[1737985517621,2.802,233.18,233.08,26.19606484]
[1737985517816,2.802,233.18,233.11,4.2904]
[1737985518021,0.03148336,233.15,233.11,0.03264741]
[1737985518321,2.7131,233.26,233.01,3.8473]
[1737985518322,2.7131,233.26,233.12,26.19606484]
[1737985518622,0.02763987,233.15,233.13,4.29]
[1737985518816,1.3345,233.26,233.14,26.19606484]
[1737985519016,1.3338,233.31,233.14,26.19606484]
[1737985519323,0.02763705,233.22,233.15,1.409]
[1737985519521,2.8255,233.34,233.2,0.03112961]
[1737985519716,2.8255,233.34,233.21,26.19606484]
[1737985519916,2.8255,233.34,233.17,26.19606484]
[1737985520521,1.3319,233.33,233.17,26.19606484]
[1737985520721,0.03057,233.28,233.23,0.02795575]
[1737985521917,0.03057,233.28,233.25,26.19606484]
[1737985522125,2.8241,233.46,233.25,26.19606484]
[1737985522320,1.3196,233.45,233.29,30.48306484]
[1737985522516,1.3196,233.45,233.29,26.19606484]
[1737985522720,26.19606484,233.39,233.15,2.6889]
[1737985523021,26.19606484,233.35,233.16,26.19606484]
[1737985523219,0.02810191,233.29,233.25,0.03295445]
[1737985524018,0.02810191,233.29,233.12,30.48616484]
[1737985524221,2.7327,233.3,233.12,26.19606484]
[1737985524527,28.93875417,233.3,233.09,26.20605417]
[1737985524727,4.2882,233.23,233.12,4.2902]
[1737985525021,4.2882,233.23,233.09,26.20605417]
[1737985525022,2.7327,233.3,233.14,16.11934095]
[1737985525228,0.03255671,233.2,233.18,16.11934095]
[1737985525428,2.7327,233.3,233.18,16.11934095]
[1737985525722,2.7327,233.3,233.14,17.27154095]
[1737985526129,4.2875,233.27,233.16,4.2894]
[1737985526329,2.7327,233.3,233.14,17.27154095]
[1737985526629,0.02762041,233.24,233.2,0.02924475]
[1737985528332,73.54,233.69,233.2,0.02924475]
[1737985528625,1.3432,233.42,233.26,16.11934095]
[1737985529030,4.2856,233.38,233.26,20.40694095]
[1737985529233,1.3731,233.41,233.26,16.11934095]
[1737985529631,0.02967063,233.36,233.31,0.03135588]
[1737985530932,4.31547063,233.36,233.31,0.03135588]
[1737985531127,0.02967063,233.36,233.31,0.03135588]
[1737985531927,4.2864,233.34,233.31,0.03135588]
[1737985532131,0.02967063,233.36,233.31,0.03135588]
[1737985532532,0.02967063,233.36,233.34,4.2861]
[1737985532727,0.02967063,233.36,233.31,0.03135588]
[1737985533126,0.02967063,233.36,233.33,4.2864]
[1737985533329,0.02967063,233.36,233.31,0.03135588]
[1737985533832,0.02967063,233.36,233.31,26.20496501]
[1737985534531,1.4292,233.48,233.31,26.20496501]
[1737985534731,1.4292,233.48,233.35,26.17360913]
[1737985535033,1.3637,233.49,233.35,26.17360913]
[1737985535227,1.3637,233.49,233.38,4.2853]
[1737985535428,1.4292,233.53,233.4,26.17360913]
[1737985535632,0.03137255,233.46,233.41,0.02980081]
[1737985535932,1.3275,233.57,233.44,26.17360913]
[1737985536339,4.2821,233.56,233.45,4.284]
[1737985536934,0.03028676,233.53,233.48,0.03162624]
[1737985537335,0.03028676,233.53,233.49,4.2833]
[1737985537526,0.03028676,233.53,233.48,26.20523537]
[1737985538330,0.03028676,233.53,233.48,0.03162624]
[1737985539036,4.2831,233.51,233.48,0.03162624]
[1737985539336,0.03028676,233.53,233.48,0.03162624]
[1737985540434,0.03028676,233.53,233.48,26.20523537]
[1737985540634,0.03028676,233.53,233.48,0.03162624]
[1737985541830,0.03028676,233.53,233.48,26.20523537]
[1737985542738,0.03028676,233.53,233.49,4.2832]
[1737985542932,0.03028676,233.53,233.48,26.20523537]
[1737985543331,1.4292,233.64,233.52,26.17360913]
[1737985543637,1.3812,233.7,233.52,26.17360913]
[1737985543933,1.3812,233.7,233.6,4.2814]
[1737985544136,1.3812,233.7,233.56,26.17360913]
[1737985544536,0.03045102,233.65,233.61,0.02810706]
[1737985549244,0.03045102,233.65,233.61,4.30920706]
[1737985549639,0.03045102,233.65,233.61,0.02810706]
[1737985549843,0.03045102,233.65,233.63,4.2807]
[1737985550544,1.3073,233.76,233.64,26.08349139]
[1737985551143,5.5858,233.76,233.66,4.2803]
[1737985551344,1.3073,233.76,233.64,26.08349139]
[1737985551644,0.02765633,233.72,233.68,0.03293869]
[1737985553747,0.02765633,233.72,233.7,4.2794]
[1737985554045,0.02765633,233.72,233.68,0.03293869]
[1737985556541,0.02765633,233.72,233.68,4.31273869]
[1737985556846,0.02765633,233.72,233.68,0.03293869]
[1737985557548,0.02765633,233.72,233.68,4.31283869]
[1737985557749,0.02765633,233.72,233.68,0.03293869]
[1737985558549,0.02765633,233.72,233.69,4.2796]
[1737985559648,0.02765633,233.72,233.68,0.03293869]
[1737985560451,0.02765633,233.72,233.54,17.0183302]
[1737985560647,1.3691,233.74,233.54,17.0183302]
[1737985560845,4.2808,233.64,233.53,4.2826]
[1737985561048,16.0537302,233.66,233.47,1.3439]
[1737985561255,1.3037,233.65,233.47,1.3439]
[1737985561448,0.03017996,233.59,233.54,0.03020177]
[1737985561650,0.03017996,233.59,233.46,16.0537302]
[1737985561947,0.03017996,233.59,233.42,16.0537302]
[1737985562449,4.2835,233.49,233.38,73.44]
[1737985562652,1.406,233.48,233.3,18.3237302]
[1737985562848,1.406,233.48,233.26,16.0537302]
[1737985563051,16.08419437,233.46,233.26,16.0537302]
[1737985563246,1.406,233.48,233.26,16.0537302]
[1737985563455,1.406,233.48,233.3,16.0537302]
[1737985563847,1.406,233.48,233.26,16.0537302]
[1737985564254,0.0271299,233.39,233.35,0.03079391]
[1737985564653,16.10448691,233.47,233.35,0.03079391]
[1737985564854,0.02971961,233.39,233.35,0.03079391]
[1737985565747,0.02971961,233.39,233.35,4.31669391]
[1737985565953,0.02971961,233.39,233.35,0.03079391]
[1737985566356,0.02971961,233.39,233.24,26.1633676]
[1737985566557,0.02971961,233.39,233.2,99.5233676]
[1737985566849,26.1633676,233.42,233.2,99.5233676]
[1737985567055,26.1633676,233.38,233.2,73.36]
[1737985567657,0.0299227,233.31,233.27,0.02853019]
[1737985568056,0.0299227,233.31,233.2,73.36]
[1737985568556,0.0299227,233.31,233.21,4.2885]
[1737985568856,0.0299227,233.31,233.2,73.36]
[1737985569056,0.0299227,233.31,233.22,4.2883]